lending/lending_fUSD_20260325
["ID","MTS","AMOUNT","RATE_DAILY","PERIOD"]
[408901144,1774419042263,-1051.50654093,0.0001568,2]
[408901145,1774419042276,-1017.78373041,0.0001568,2]
[408901146,1774419042289,-1175.31590474,0.0001568,2]
[408901147,1774419042301,-230.0,0.00015683,2]
[408901148,1774419042315,-2000.0,0.000157,2]
[408901149,1774419042329,-230.0,0.00015709,2]
[408901150,1774419042342,-1300.0,0.00015726,2]
[408901151,1774419042356,-2351.0,0.00015729,2]
[408901152,1774419042369,-350.0,0.00015747,2]
[408901153,1774419042389,-1172.8,0.00015753,2]
[408901154,1774419042403,-259.3659,0.000158,2]
[408901155,1774419042417,-2403.0,0.000158,2]
[408901156,1774419042431,-350.0,0.00015822,2]
[408901157,1774419042445,-250.0,0.00015828,2]
[408901158,1774419042460,-1144.94732496,0.0001584,2]
[408901159,1774419042474,-1389.03838,0.0001584,2]
[408901160,1774419042487,-1389.03838,0.0001584,2]
[408901161,1774419042500,-1389.03839,0.0001585,2]
[408901162,1774419042513,-230.0,0.00015852,2]
[408901163,1774419042526,-230.0,0.00015859,2]
[408901164,1774419042538,-500.0,0.00015872,2]
[408901165,1774419042551,-200.0,0.00015872,2]
[408901166,1774419042565,-414.38,0.00015888,2]
[408901167,1774419042577,-406.64,0.00015888,2]
[408901168,1774419042590,-900.0,0.00015891,2]
[408901169,1774419042607,-500.0,0.00015899,2]
[408901170,1774419042621,-10000.0,0.000159,2]
[408901171,1774419042635,-212.08615124,0.000159,2]
[408901172,1774419042649,-484.62989464,0.000159,2]
[408901173,1774419042663,-3511.93592048,0.000159,2]
[408901174,1774419042676,-5709.9917792,0.000159,2]
[408901175,1774419042689,-154.44,0.000159,2]
[408901176,1774419042704,-2267.17228402,0.00015912,2]
[408901177,1774419042721,-732.82771598,0.00015912,2]
[408901178,1774419042734,-350.0,0.00015943,3]
[408901179,1774419042747,-1277.99532015,0.0001596,2]
[408901180,1774419042759,-500.43371768,0.00015973,2]
[408901181,1774419042771,-500.10733677,0.00015973,2]
[408901182,1774419042784,-503.85224091,0.00015973,2]
[408901183,1774419042797,-500.0,0.00015973,2]
[408901184,1774419042810,-500.0,0.00015973,2]
[408901185,1774419042823,-500.0,0.00015973,2]
[408901186,1774419042836,-500.0,0.00015973,2]
[408901187,1774419042850,-500.0,0.00015973,2]
[408901188,1774419042863,-500.0,0.00015973,2]
[408901189,1774419042877,-403.08009952,0.00015973,2]
[408901190,1774419042891,-500.0,0.00015973,2]
[408901191,1774419042904,-500.0,0.00015973,2]
[408901192,1774419042918,-500.7227173,0.00015973,2]
[408901193,1774419042931,-500.0,0.00015973,2]
[408901194,1774419042944,-500.0,0.00015973,2]
[408901195,1774419042957,-500.0,0.00015973,2]
[408901196,1774419042971,-500.67261463,0.00015973,2]
[408901197,1774419042983,-500.0,0.00015973,2]
[408901198,1774419042996,-500.0,0.00015973,2]
[408901199,1774419043009,-500.0,0.00015973,2]
[408901200,1774419043021,-349.90793333,0.00015973,2]
[408901201,1774419043034,-500.0,0.00015973,2]
[408901202,1774419043047,-500.0,0.00015973,2]
[408901203,1774419043061,-500.0,0.00015973,2]
[408901204,1774419043075,-500.0,0.00015973,2]
[408901205,1774419043090,-754.77215921,0.0001599,2]
[408901206,1774419043105,-754.77215921,0.0001599,2]
[408901207,1774419043119,-754.77215921,0.0001599,2]
[408901208,1774419043132,-155.6922781,0.00015994,2]
[408901209,1774419043144,-2408.788983,0.00015994,2]
[408901210,1774419043157,-19590.88409992,0.00015994,2]
[408901211,1774419043172,-265.1286,0.00015994,2]
[408901212,1774419043187,-333.26194966,0.00015994,2]
[408901214,1774419043198,-1020.7045588,0.00015994,2]
[408901216,1774419043698,-1163.69555954,0.000159,2]
[408901218,1774419046280,-151.0,0.0001329,2]
[408901219,1774419046290,-2000.0,0.000155,2]
[408901220,1774419046301,-683.00840785,0.000156,2]
[408901221,1774419046338,-1316.99159215,0.000156,2]
[408901222,1774419046347,-2000.0,0.000157,2]
[408901223,1774419046357,-2000.0,0.000158,2]
[408901224,1774419046366,-7156.61582577,0.000159,2]
[408901225,1774419046379,-2000.0,0.000159,2]
[408901226,1774419046389,-1574.88220862,0.00015994,2]
[408901227,1774419046398,-6529.3137118,0.00015994,2]
[408901228,1774419046408,-151.0,0.00015997,2]
[408901229,1774419046419,-151.0,0.00015997,2]
[408901230,1774419046428,-500.0,0.00015998,2]
[408901231,1774419046438,-513.08802913,0.00015999,2]
[408901232,1774419046453,-500.0,0.00015999,2]
[408901233,1774419046464,-500.0,0.00015999,2]
[408901234,1774419046474,-500.0,0.00015999,2]
[408901235,1774419046483,-500.0,0.00015999,2]
[408901236,1774419046493,-500.0,0.00015999,2]
[408901237,1774419046503,-419.03397916,0.00015999,2]
[408901238,1774419046513,-568.0,0.00016,5]
[408901239,1774419046522,-63927.42905453,0.00016,2]
[408901240,1774419046634,-32921.25085867,0.00016,2]
[408901248,1774419136236,814.0,0.000119,5]
[408901249,1774419235735,444.95,0.00012647,2]
[408901250,1774419307158,169.0,0.0001265,2]
[408901251,1774419318150,1852.42,0.00012647,2]
[408901252,1774419480237,168.38,0.00010118,2]
[408901253,1774419584646,2000.0,0.00012643,2]
[408901256,1774419768635,-1600.0,0.00012757,2]
[408901257,1774419768664,-200.0,0.000128,4]
[408901258,1774419768693,-500.0,0.000129,4]
[408901259,1774419768721,-1200.0,0.00013072,2]
[408901260,1774419768748,-300.0,0.00013072,2]
[408901261,1774419768780,-300.0,0.00013072,2]
[408901262,1774419774580,-2500.0,0.00013073,2]
[408901263,1774419774618,-1036.45163368,0.00013073,2]
[408901264,1774419778207,-2825.57401569,0.00013073,2]
[408901265,1774419778255,-1723.55870126,0.00013073,2]
[408901266,1774419780634,-2625.30326736,0.00013073,2]
[408901267,1774419780662,-1260.2219439,0.00013073,2]
[408901268,1774419781249,300.0,0.00013072,2]
[408901269,1774419934123,-300.0,0.00012682,2]
[408901270,1774419934145,-265.0,0.00012682,2]
[408901271,1774419934166,-58.62823025,0.00012682,2]
[408901272,1774420019741,181.48443452,0.00012582,2]
[408901273,1774420054114,-1141.37176975,0.00012682,2]
[408901274,1774420054135,-343.40339873,0.00012682,2]
[408901275,1774420078354,-4656.59660127,0.00012682,2]
[408901276,1774420078423,-205.33236294,0.00012683,2]
[408901277,1774420081238,-111.61236294,0.00012683,2]
[408901278,1774420081262,-9776.78527412,0.00012683,2]
[408901279,1774420137894,139200.35719035,9.5e-05,3]
[408901312,1774420231442,-200.0,0.000127,2]
[408901313,1774420231452,-582.0,0.00012799,2]
[408901314,1774420231501,-448.49927059,0.00012799,2]
[408901315,1774420231512,-169.50072941,0.00012799,2]
[408901316,1774420231521,-400.0,0.000128,4]
[408901317,1774420231529,-785.30190532,0.000128,2]
[408901318,1774420231537,-5000.0,0.000128,2]
[408901319,1774420231547,-800.0,0.000129,4]
[408901320,1774420231555,-302.73019387,0.000129,2]
[408901321,1774420231564,-1397.45250592,0.00013,7]
[408901322,1774420231572,-150.0,0.00013071,2]
[408901323,1774420231581,-197885.7786,0.00013072,2]
[408901324,1774420231590,-181.48443452,0.00013072,2]
[408901325,1774420231599,-932.80647024,0.00013073,2]
[408901326,1774420231609,-205.0,0.000131,2]
[408901327,1774420231618,-151.0,0.0001317,2]
[408901328,1774420231627,-500.0,0.00013172,2]
[408901329,1774420231635,-500.0,0.00013172,2]
[408901330,1774420231643,-500.0,0.00013172,2]
[408901331,1774420231651,-500.0,0.00013172,2]
[408901332,1774420231660,-500.0,0.00013172,2]
[408901333,1774420231670,-500.0,0.00013172,2]
[408901335,1774420231679,-500.0,0.00013172,2]
[408901337,1774420231689,-500.0,0.00013172,2]
[408901340,1774420231698,-500.0,0.00013172,2]
[408901343,1774420231708,-500.0,0.00013172,2]
[408901346,1774420231717,-500.0,0.00013172,2]
[408901349,1774420231726,-500.0,0.00013172,2]
[408901352,1774420231735,-500.0,0.00013172,2]
[408901354,1774420231746,-500.0,0.00013172,2]
[408901356,1774420231756,-500.0,0.00013172,2]
[408901358,1774420231766,-500.0,0.00013172,2]
[408901361,1774420231775,-500.0,0.00013172,2]
[408901364,1774420231784,-500.0,0.00013172,2]
[408901367,1774420231795,-500.0,0.00013172,2]
[408901370,1774420231804,-500.0,0.00013172,2]
[408901373,1774420231813,-500.0,0.00013172,2]
[408901376,1774420231823,-500.0,0.00013172,2]
[408901379,1774420231832,-498.6282967,0.00013172,2]
[408901383,1774420231842,-500.0,0.00013172,2]
[408901384,1774420231851,-500.0,0.00013172,2]
[408901387,1774420231860,-500.0,0.00013172,2]
[408901389,1774420231869,-500.0,0.00013172,2]
[408901390,1774420231878,-500.0,0.00013172,2]
[408901392,1774420231887,-500.0,0.00013172,2]
[408901395,1774420231896,-500.0,0.00013172,2]
[408901397,1774420231905,-500.0,0.00013172,2]
[408901399,1774420231915,-500.0,0.00013172,2]
[408901400,1774420231924,-500.0,0.00013172,2]
[408901403,1774420231933,-500.0,0.00013172,2]
[408901404,1774420231942,-500.0,0.00013172,2]
[408901407,1774420231951,-500.0,0.00013172,2]
[408901409,1774420231960,-500.0,0.00013172,2]
[408901411,1774420231970,-500.0,0.00013172,2]
[408901413,1774420231979,-500.0,0.00013172,2]
[408901415,1774420231988,-500.0,0.00013172,2]
[408901417,1774420231997,-500.0,0.00013172,2]
[408901419,1774420232007,-500.0,0.00013172,2]
[408901421,1774420232017,-500.0,0.00013172,2]
[408901423,1774420232027,-500.0,0.00013172,2]
[408901425,1774420232036,-500.0,0.00013172,2]
[408901427,1774420232045,-500.0,0.00013172,2]
[408901429,1774420232054,-500.0,0.00013172,2]
[408901431,1774420232063,-500.0,0.00013172,2]
[408901433,1774420232072,-500.0,0.00013172,2]
[408901435,1774420232080,-500.0,0.00013172,2]
[408901437,1774420232088,-350.0,0.00013172,2]
[408901439,1774420232098,-500.0,0.00013172,2]
[408901441,1774420232108,-500.0,0.00013172,2]
[408901443,1774420232117,-500.0,0.00013172,2]
[408901445,1774420232126,-500.0,0.00013172,2]
[408901447,1774420232135,-500.0,0.00013172,2]
[408901448,1774420232146,-500.0,0.00013172,2]
[408901450,1774420232155,-500.0,0.00013172,2]
[408901451,1774420232165,-500.0,0.00013172,2]
[408901452,1774420232176,-150.56696842,0.00013172,2]
[408901453,1774420232185,-179.076,0.00013172,2]
[408901454,1774420232194,-3678.974,0.00013172,2]
[408901455,1774420232203,-759.43,0.00013172,2]
[408901456,1774420232212,-155.0,0.00013172,2]
[408901457,1774420232221,-182848.44083895,0.00013173,2]
[408901458,1774420232754,-56088.69885115,0.00013173,2]
[408901462,1774420237440,-8723.48897834,0.00013173,2]
[408901463,1774420237452,-615.19826558,0.00013173,2]
[408901464,1774420237464,-2542.91899349,0.00013173,2]
[408901465,1774420237475,-1187.75083997,0.00013173,2]
[408901466,1774420237487,-378.29286825,0.00013173,2]
[408901467,1774420237504,-177.53,0.000127,2]
[408901468,1774420237514,-4208.02298167,0.00013173,2]
[408901469,1774420237674,-901.16,0.00013173,2]
[408901470,1774420237686,-34454.0,0.00013173,2]
[408901471,1774420237697,-11181.19376746,0.00013173,2]
[408901500,1774420240119,-63303.93191514,0.00013173,2]
[408901501,1774420240129,-502.08574214,0.00013173,2]
[408901502,1774420240138,-500.0,0.00013173,2]
[408901503,1774420240149,-500.0,0.00013173,2]
[408901504,1774420240160,-500.0,0.00013173,2]
[408901505,1774420240171,-500.0,0.00013173,2]
[408901506,1774420240181,-500.0,0.00013173,2]
[408901507,1774420240194,-500.0,0.00013173,2]
[408901508,1774420240204,-500.0,0.00013173,2]
[408901509,1774420240214,-500.0,0.00013173,2]
[408901510,1774420240225,-500.0,0.00013187,2]
[408901511,1774420240236,-500.0,0.00013187,2]
[408901512,1774420240246,-151.0,0.00013187,2]
[408901513,1774420240255,-500.0,0.00013187,2]
[408901514,1774420240266,-151.0,0.00013187,2]
[408901515,1774420240276,-500.0,0.00013187,2]
[408901516,1774420240285,-151.0,0.00013187,2]
[408901518,1774420240294,-200.0,0.00013187,2]
[408901520,1774420240304,-500.0,0.00013187,2]
[408901521,1774420240313,-151.0,0.00013187,2]
[408901522,1774420240324,-500.0,0.00013187,2]
[408901523,1774420240335,-151.0,0.00013187,2]
[408901524,1774420240345,-500.0,0.00013187,2]
[408901526,1774420240354,-151.0,0.00013187,2]
[408901528,1774420240364,-606.70815574,0.00013187,2]
[408901530,1774420240373,-151.0,0.00013187,2]
[408901532,1774420240382,-151.0,0.00013187,2]
[408901533,1774420240392,-165.4440686,0.00013187,2]
[408901534,1774420240401,-151.0,0.00013191,2]
[408901535,1774420240411,-170.92212866,0.00013194,2]
[408901536,1774420240420,-500.0,0.00013194,2]
[408901537,1774420240431,-500.0,0.00013194,2]
[408901538,1774420240441,-500.0,0.00013194,2]
[408901539,1774420240450,-165.05161136,0.00013194,2]
[408901540,1774420240459,-500.0,0.00013194,2]
[408901541,1774420240469,-500.0,0.00013194,2]
[408901542,1774420240478,-500.0,0.00013194,2]
[408901543,1774420240487,-500.0,0.00013194,2]
[408901544,1774420240496,-500.0,0.00013194,2]
[408901545,1774420240505,-500.0,0.00013194,2]
[408901546,1774420240514,-500.0,0.00013194,2]
[408901547,1774420240523,-633.40526038,0.00013194,2]
[408901548,1774420240533,-500.0,0.00013194,2]
[408901549,1774420240542,-500.0,0.00013194,2]
[408901550,1774420240551,-500.0,0.00013194,2]
[408901551,1774420240560,-500.0,0.00013194,2]
[408901552,1774420240574,-500.0,0.00013194,2]
[408901553,1774420240584,-500.0,0.00013194,2]
[408901554,1774420240594,-217.87978326,0.00013194,2]
[408901555,1774420240603,-500.0,0.00013194,2]
[408901556,1774420240613,-500.0,0.00013194,2]
[408901557,1774420240622,-2761.97,0.00013194,2]
[408901558,1774420240634,-20692.88,0.00013194,2]
[408901559,1774420240643,-225.0,0.00013194,2]
[408901560,1774420240653,-432.46,0.00013196,2]
[408901561,1774420240663,-1000.0,0.00013196,2]
[408901562,1774420240672,-932.80647024,0.00013387,2]
[408901563,1774420240683,-369.74698958,0.00013395,2]
[408901564,1774420240692,-5325.68196751,0.00013409,2]
[408901565,1774420240701,-759.43,0.00013445,2]
[408901566,1774420240711,-500.0,0.00013445,2]
[408901567,1774420240721,-473.08637647,0.00013471,2]
[408901568,1774420240731,-348.0,0.00013483,2]
[408901569,1774420240739,-150.0,0.000136,2]
[408901570,1774420240751,-500.0,0.00013698,2]
[408901571,1774420240761,-500.0,0.00013698,2]
[408901572,1774420240774,-500.0,0.00013698,2]
[408901573,1774420240783,-317.48694253,0.00013698,2]
[408901574,1774420240795,-500.0,0.00013698,2]
[408901575,1774420240806,-500.0,0.00013698,2]
[408901576,1774420240818,-500.0,0.00013698,2]
[408901577,1774420240829,-500.0,0.00013698,2]
[408901578,1774420240838,-500.0,0.00013698,2]
[408901579,1774420240849,-500.0,0.00013698,2]
[408901580,1774420240858,-500.0,0.00013698,2]
[408901581,1774420240868,-500.0,0.00013698,2]
[408901582,1774420240880,-500.0,0.00013698,2]
[408901583,1774420240890,-500.0,0.00013698,2]
[408901584,1774420240899,-500.0,0.00013698,2]
[408901585,1774420240910,-500.0,0.00013698,2]
[408901586,1774420240919,-500.0,0.00013698,2]
[408901587,1774420240929,-500.0,0.00013698,2]
[408901588,1774420241282,-500.0,0.00013698,2]
[408901589,1774420241293,-568.02664412,0.00013698,2]
[408901590,1774420241303,-500.0,0.00013698,2]
[408901591,1774420241315,-500.0,0.00013698,2]
[408901592,1774420241325,-500.0,0.00013698,2]
[408901593,1774420241335,-282.18381084,0.00013698,2]
[408901594,1774420241344,-500.0,0.00013698,2]
[408901595,1774420241354,-513.54711721,0.00013698,2]
[408901596,1774420241363,-510.26922287,0.00013698,2]
[408901597,1774420241373,-500.0,0.00013698,2]
[408901598,1774420241383,-500.0,0.00013698,2]
[408901599,1774420241392,-500.0,0.00013698,2]
[408901600,1774420241402,-534.34010684,0.00013698,2]
[408901601,1774420241412,-519.01013968,0.00013698,2]
[408901602,1774420241421,-150.0,0.00013699,2]
[408901603,1774420241430,-150.0,0.00013699,2]
[408901604,1774420241439,-1165.78,0.00013699,2]
[408901605,1774420241448,-164.85,0.00013699,2]
[408901606,1774420241457,-637.41109755,0.00013699,2]
[408901607,1774420241466,-872.85,0.000137,2]
[408901608,1774420241475,-2531.77,0.000137,2]
[408901609,1774420241485,-3300.2,0.000137,2]
[408901610,1774420241494,-932.80647024,0.00013701,2]
[408901611,1774420241503,-759.43,0.00013719,2]
[408901612,1774420241512,-500.0,0.00013719,2]
[408901613,1774420241521,-1000.0,0.00013721,2]
[408901614,1774420241530,-511.45325167,0.00013721,2]
[408901615,1774420241539,-1000.0,0.00013721,2]
[408901616,1774420241548,-1000.0,0.00013721,2]
[408901617,1774420241557,-1000.0,0.00013721,2]
[408901618,1774420241567,-1000.0,0.00013721,2]
[408901619,1774420241576,-1000.0,0.00013721,2]
[408901620,1774420241585,-200.0,0.00013735,2]
[408901621,1774420241594,-243.62271831,0.0001395,2]
[408901622,1774420241603,-607.13105687,0.0001395,2]
[408901623,1774420241612,-200.0,0.0001397,2]
[408901624,1774420241621,-238.13425062,0.0001397,2]
[408901625,1774420241630,-831.41769929,0.0001397,2]
[408901626,1774420241639,-300.31318733,0.0001397,2]
[408901627,1774420241648,-28083.81301402,0.0001399,2]
[408901628,1774420241662,-610.45389952,0.0001399,2]
[408901629,1774420241672,-4544.79735654,0.0001399,2]
[408901630,1774420241688,-99427.70921548,0.0001399,2]
[408901631,1774420241697,-151.0,0.0001399,2]
[408901632,1774420241706,-759.43,0.00013993,2]
[408901633,1774420241714,-507.0,0.00014,2]
[408901634,1774420241724,-508.0,0.00014,2]
[408901635,1774420241733,-932.80647024,0.00014015,2]
[408901636,1774420241742,-183.59,0.00014023,2]
[408901637,1774420241755,-223.38,0.00014023,2]
[408901638,1774420241764,-1680.0,0.00014079,2]
[408901639,1774420241773,-5000.0,0.0001408,2]
[408901640,1774420241782,-250.0,0.0001408,2]
[408901641,1774420241793,-1200.0,0.00014082,2]
[408901642,1774420241802,-1400.0,0.00014082,2]
[408901643,1774420241811,-60000.0,0.00014115,2]
[408901644,1774420241821,-151.0,0.00014116,2]
[408901645,1774420241830,-151.0,0.00014116,2]
[408901646,1774420241839,-301.565904,0.00014116,2]
[408901647,1774420241848,-301.565904,0.00014116,2]
[408901648,1774420241857,-301.565904,0.00014116,2]
[408901649,1774420241867,-301.565904,0.00014116,2]
[408901650,1774420241875,-255.0,0.00014181,2]
[408901651,1774420241884,-550.17,0.00014205,2]
[408901652,1774420241894,-2296.24409023,0.0001421,7]
[408901653,1774420241903,-2000.0,0.00014223,2]
[408901654,1774420241912,-759.43,0.00014267,2]
[408901655,1774420241921,-384.45811669,0.00014268,2]
[408901656,1774420241930,-1500.0,0.00014268,2]
[408901657,1774420241939,-1500.0,0.00014268,2]
[408901658,1774420241947,-991.97783969,0.00014268,2]
[408901659,1774420241956,-1500.0,0.00014268,2]
[408901660,1774420241965,-500.0,0.00014268,2]
[408901661,1774420241975,-200.0,0.00014283,2]
[408901662,1774420241985,-578.20924308,0.00014294,2]
[408901663,1774420241995,-721.12765535,0.00014294,2]
[408901664,1774420242005,-151.0,0.00014294,2]
[408901665,1774420242014,-500.0,0.00014294,2]
[408901666,1774420242023,-500.0,0.00014294,2]
[408901667,1774420242032,-500.0,0.00014294,2]
[408901668,1774420242041,-500.0,0.00014294,2]
[408901669,1774420242051,-500.0,0.00014294,2]
[408901670,1774420242060,-500.0,0.00014294,2]
[408901671,1774420242070,-151.0,0.00014294,2]
[408901672,1774420242079,-500.0,0.00014294,2]
[408901673,1774420242088,-500.0,0.00014294,2]
[408901674,1774420242097,-500.0,0.00014294,2]
[408901675,1774420242106,-174.61919141,0.00014294,2]
[408901676,1774420242115,-500.0,0.00014294,2]
[408901677,1774420242124,-500.0,0.00014294,2]
[408901678,1774420242133,-500.0,0.00014294,2]
[408901679,1774420242142,-771.01748645,0.00014294,2]
[408901680,1774420242152,-825.50162876,0.00014294,2]
[408901681,1774420242161,-200.0,0.00014294,2]
[408901682,1774420242170,-355.9199736,0.00014294,2]
[408901683,1774420242179,-276.35047152,0.00014294,2]
[408901684,1774420242189,-932.80647024,0.00014329,2]
[408901685,1774420242197,-500.0,0.00014349,2]
[408901686,1774420242207,-151.0,0.00014349,2]
[408901687,1774420242216,-1600.0,0.00014351,2]
[408901688,1774420242225,-500.0,0.00014404,2]
[408901689,1774420242235,-151.0,0.00014404,2]
[408901690,1774420242245,-500.0,0.00014459,2]
[408901691,1774420242254,-151.0,0.00014459,2]
[408901692,1774420242263,-648.38,0.00014504,2]
[408901693,1774420242272,-9999.99,0.00014504,2]
[408901694,1774420242281,-3672.53,0.00014504,2]
[408901695,1774420242290,-4295.27,0.00014504,2]
[408901696,1774420242299,-1189.64,0.00014504,2]
[408901697,1774420242309,-500.0,0.00014514,2]
[408901698,1774420242318,-151.0,0.00014514,2]
[408901699,1774420242328,-759.43,0.00014541,2]
[408901700,1774420242338,-500.0,0.00014569,2]
[408901701,1774420242347,-151.0,0.00014569,2]
[408901702,1774420242357,-500.0,0.00014624,2]
[408901703,1774420242366,-151.0,0.00014624,2]
[408901704,1774420242376,-932.80647024,0.00014644,2]
[408901705,1774420242385,-500.0,0.00014658,2]
[408901706,1774420242395,-500.0,0.00014679,2]
[408901707,1774420242405,-151.0,0.00014679,2]
[408901708,1774420242414,-1102.69420091,0.00014688,2]
[408901709,1774420242424,-1567.0,0.0001472,2]
[408901710,1774420242433,-500.0,0.00014734,2]
[408901711,1774420242442,-151.0,0.00014734,2]
[408901712,1774420242452,-500.0,0.00014789,2]
[408901713,1774420242461,-151.0,0.00014789,2]
[408901714,1774420242471,-154.31088788,0.00014798,2]
[408901716,1774420242480,-197.2298,0.000148,2]
[408901717,1774420242490,-759.43,0.00014815,2]
[408901719,1774420242500,-1000.0,0.00014816,2]
[408901720,1774420242509,-2000.0,0.00014816,2]
[408901721,1774420242519,-2000.0,0.00014816,2]
[408901723,1774420242528,-151.0,0.00014842,2]
[408901724,1774420242537,-181.08010149,0.00014842,2]
[408901725,1774420242547,-200.0,0.00014842,2]
[408901726,1774420242556,-500.0,0.00014844,2]
[408901727,1774420242565,-151.0,0.00014844,2]
[408901728,1774420242574,-160.0,0.00014894,2]
[408901729,1774420242583,-979.16666667,0.00014894,2]
[408901730,1774420242593,-6456.99238583,0.00014958,2]
[408901731,1774420242602,-932.80647024,0.00014958,2]
[408901732,1774420242611,-2064.46610994,0.00015,2]
[408901733,1774420242620,-8037.03514038,0.00015,2]
[408901734,1774420242629,-4995.72241814,0.00015,2]
[408901735,1774420242638,-328.193877,0.00015073,7]
[408901736,1774420242648,-759.47080658,0.00015089,2]
[408901737,1774420242658,-1102.69420091,0.00015092,2]
[408901738,1774420242667,-1200.0,0.000152,5]
[408901739,1774420242676,-6456.99238583,0.00015272,2]
[408901740,1774420242686,-932.80647024,0.00015272,2]
[408901741,1774420242695,-1700.0,0.000153,5]
[408901742,1774420242704,-364.0,0.0001536,5]
[408901743,1774420242714,-285.0,0.0001536,5]
[408901744,1774420242723,-523.0,0.0001536,2]
[408901745,1774420242732,-452.92694426,0.00015364,2]
[408901746,1774420242743,-2500.0,0.00015364,2]
[408901747,1774420242754,-161.59374025,0.0001538,2]
[408901748,1774420242763,-1262.0,0.00015381,2]
[408901749,1774420242772,-1216.0,0.00015381,2]
[408901750,1774420242782,-924.0,0.00015381,2]
[408901751,1774420242793,-6010.0,0.00015381,2]
[408901752,1774420242803,-1045.0,0.00015381,2]
[408901753,1774420242812,-433.0,0.00015384,2]
[408901754,1774420242822,-151.0,0.0001539,2]
[408901755,1774420242832,-187.78006525,0.0001539,2]
[408901756,1774420242841,-200.0,0.0001539,2]
[408901757,1774420242851,-2100.0,0.000154,5]
[408901758,1774420242861,-3300.2,0.000154,2]
[408901759,1774420242871,-151.0,0.00015452,2]
[408901760,1774420242881,-1200.0,0.00015452,2]
[408901761,1774420242891,-1400.0,0.00015452,2]
[408901762,1774420242900,-500.0,0.00015479,2]
[408901763,1774420242910,-1200.0,0.00015487,2]
[408901764,1774420242920,-1102.69420091,0.00015496,2]
[408901765,1774420242930,-400.0,0.000155,5]
[408901766,1774420242940,-4000.0,0.00015507,2]
[408901767,1774420242949,-1059.85637019,0.00015582,2]
[408901768,1774420242959,-1125.07009657,0.00015582,2]
[408901769,1774420242969,-1027.65696552,0.00015582,2]
[408901770,1774420242978,-6456.99238583,0.00015586,2]
[408901771,1774420242988,-932.80647024,0.00015586,2]
[408901772,1774420242997,-872.85,0.000156,2]
[408901774,1774420243007,-400.0,0.000156,5]
[408901775,1774420243017,-1586.93378641,0.00015634,2]
[408901777,1774420243026,-3150.62571265,0.0001568,2]
[408901779,1774420243035,-1569.0,0.0001568,2]
[408901781,1774420243044,-94490.6508828,0.00015685,2]
[408901783,1774420243053,-3631.0726706,0.00015685,2]
[408901785,1774420243062,-151.0,0.00015685,2]
[408901787,1774420243071,-283.627127,0.00015685,2]
[408901789,1774420243081,-301.565904,0.00015685,2]
[408901791,1774420243090,-301.565904,0.00015685,2]
[408901793,1774420243099,-301.565904,0.00015685,2]
[408901795,1774420243108,-301.565904,0.00015685,2]
[408901797,1774420243118,-743.0,0.000157,2]
[408901799,1774420243127,-2531.77,0.000157,2]
[408901801,1774420243136,-400.0,0.000157,5]
[408901803,1774420243145,-999.0,0.000157,2]
[408901805,1774420243154,-312.0,0.000157,2]
[408901807,1774420243164,-151.0,0.00015703,2]
[408901809,1774420243173,-151.0,0.00015703,2]
[408901811,1774420243182,-151.0,0.00015703,2]